[Event "Early-Titled-Tuesday-Blitz-May-07-2024"]
[Site "Chess.com"]
[Date "2024.05.07"]
[Round "5"]
[White "Genghis_K"]
[Black "stolencandy13"]
[Result "1-0"]
[WhiteElo "2915"]
[BlackElo "2679"]
[TimeControl "180+1"]
[EndTime "8:57:28 PDT"]
[Termination "Genghis_K won by checkmate"]

1. e4 {[%clk 0:02:55.3]} 1... c6 {[%clk 0:03:00.1]} 2. d4 {[%clk 0:02:54.4]}
2... d5 {[%clk 0:03:01]} 3. e5 {[%clk 0:02:54.8]} 3... Bf5 {[%clk 0:03:00.7]} 4.
h4 {[%clk 0:02:54.5]} 4... h5 {[%clk 0:03:00.8]} 5. Bd3 {[%clk 0:02:54.4]} 5...
Bxd3 {[%clk 0:03:00.9]} 6. Qxd3 {[%clk 0:02:55.3]} 6... e6 {[%clk 0:03:01.3]} 7.
Nf3 {[%clk 0:02:54.6]} 7... Qa5+ {[%clk 0:02:57]} 8. Nbd2 {[%clk 0:02:41.9]}
8... Qa6 {[%clk 0:02:56.7]} 9. c4 {[%clk 0:02:41.3]} 9... Ne7 {[%clk 0:02:56.2]}
10. O-O {[%clk 0:02:39.3]} 10... Nf5 {[%clk 0:02:56.4]} 11. b3 {[%clk 0:02:40]}
11... Be7 {[%clk 0:02:55.4]} 12. a4 {[%clk 0:02:40.7]} 12... Nxh4 {[%clk
0:02:53.4]} 13. Nxh4 {[%clk 0:02:40.3]} 13... Bxh4 {[%clk 0:02:54.3]} 14. Ba3
{[%clk 0:02:40.8]} 14... Qb6 {[%clk 0:02:46.5]} 15. b4 {[%clk 0:02:27.7]} 15...
Be7 {[%clk 0:02:42.5]} 16. b5 {[%clk 0:02:21.2]} 16... Bxa3 {[%clk 0:02:39.1]}
17. Rxa3 {[%clk 0:02:15.1]} 17... Nd7 {[%clk 0:02:36.3]} 18. cxd5 {[%clk
0:02:12.7]} 18... cxd5 {[%clk 0:02:33.6]} 19. Rc3 {[%clk 0:02:11.3]} 19... O-O
{[%clk 0:02:29.3]} 20. Rfc1 {[%clk 0:02:10.8]} 20... a6 {[%clk 0:02:29.2]} 21.
Nf3 {[%clk 0:02:00.8]} 21... axb5 {[%clk 0:02:27.8]} 22. Ng5 {[%clk 0:02:00.2]}
22... g6 {[%clk 0:02:25.4]} 23. Rc7 {[%clk 0:01:59.3]} 23... Rad8 {[%clk
0:00:41.6]} 24. axb5 {[%clk 0:01:56.5]} 24... Qa5 {[%clk 0:00:31.9]} 25. Nxe6
{[%clk 0:01:50.6]} 25... fxe6 {[%clk 0:00:24.5]} 26. Qxg6+ {[%clk 0:01:50.6]}
26... Kh8 {[%clk 0:00:24.4]} 27. Qxh5+ {[%clk 0:01:50.4]} 27... Kg7 {[%clk
0:00:23]} 28. R1c3 {[%clk 0:01:36.1]} 28... Rf7 {[%clk 0:00:10.4]} 29. Qg5+
{[%clk 0:01:30.4]} 29... Kh7 {[%clk 0:00:09.7]} 30. Rh3# {[%clk 0:01:29.8]} 1-0

[Event "Early-Titled-Tuesday-Blitz-May-07-2024"]
[Site "Chess.com"]
[Date "2024.05.07"]
[Round "5"]
[White "secretsuperstar7"]
[Black "Kotlyar_K"]
[Result "0-1"]
[WhiteElo "2468"]
[BlackElo "2672"]
[TimeControl "180+1"]
[EndTime "8:57:30 PDT"]
[Termination "Kotlyar_K won by checkmate"]

1. c4 {[%clk 0:03:00.9]} 1... e5 {[%clk 0:02:57.4]} 2. Nc3 {[%clk 0:02:59.4]}
2... Bb4 {[%clk 0:02:57.4]} 3. Nd5 {[%clk 0:02:57.5]} 3... Be7 {[%clk
0:02:57.2]} 4. g3 {[%clk 0:02:55.1]} 4... d6 {[%clk 0:02:56.6]} 5. Bg2 {[%clk
0:02:55]} 5... f5 {[%clk 0:02:57]} 6. d3 {[%clk 0:02:52.7]} 6... Nf6 {[%clk
0:02:56.8]} 7. Nxf6+ {[%clk 0:02:40.9]} 7... Bxf6 {[%clk 0:02:51.7]} 8. Nf3
{[%clk 0:02:41.1]} 8... O-O {[%clk 0:02:51.8]} 9. O-O {[%clk 0:02:40.9]} 9... c6
{[%clk 0:02:46.5]} 10. Rb1 {[%clk 0:02:34.5]} 10... a5 {[%clk 0:02:39.6]} 11. b3
{[%clk 0:02:26.9]} 11... Nd7 {[%clk 0:02:33.6]} 12. Ba3 {[%clk 0:02:26.5]} 12...
Be7 {[%clk 0:02:11.6]} 13. d4 {[%clk 0:02:16]} 13... e4 {[%clk 0:02:03.9]} 14.
Ne1 {[%clk 0:02:15.9]} 14... Nf6 {[%clk 0:01:45.5]} 15. d5 {[%clk 0:02:13.6]}
15... cxd5 {[%clk 0:01:45.4]} 16. cxd5 {[%clk 0:02:13.5]} 16... b5 {[%clk
0:01:46.1]} 17. Nc2 {[%clk 0:02:01.9]} 17... b4 {[%clk 0:01:41.9]} 18. Bb2
{[%clk 0:02:01.6]} 18... Bb7 {[%clk 0:01:34.8]} 19. Nd4 {[%clk 0:02:01]} 19...
Qd7 {[%clk 0:01:27.5]} 20. Bh3 {[%clk 0:01:41.4]} 20... Nxd5 {[%clk 0:01:18.9]}
21. e3 {[%clk 0:01:09.8]} 21... g6 {[%clk 0:01:15.1]} 22. Qc2 {[%clk 0:01:05.9]}
22... Bf6 {[%clk 0:01:12.7]} 23. Qxe4 {[%clk 0:00:58.6]} 23... Nc3 {[%clk
0:01:00.4]} 24. Qd3 {[%clk 0:00:57.3]} 24... Be4 {[%clk 0:00:49]} 25. Qc4+
{[%clk 0:00:55.9]} 25... d5 {[%clk 0:00:46.1]} 26. Qc5 {[%clk 0:00:51.3]} 26...
Bxd4 {[%clk 0:00:45.7]} 27. Qxd4 {[%clk 0:00:49.5]} 27... Ne2# {[%clk
0:00:45.7]} 0-1

[Event "Early-Titled-Tuesday-Blitz-May-07-2024"]
[Site "Chess.com"]
[Date "2024.05.07"]
[Round "5"]
[White "ccccvhhhj"]
[Black "wqws"]
[Result "0-1"]
[WhiteElo "2486"]
[BlackElo "2689"]
[TimeControl "180+1"]
[EndTime "8:57:31 PDT"]
[Termination "wqws won on time"]

1. e4 {[%clk 0:03:00.9]} 1... c5 {[%clk 0:02:59.9]} 2. Nf3 {[%clk 0:03:00.5]}
2... d6 {[%clk 0:03:00.1]} 3. d4 {[%clk 0:03:00.7]} 3... cxd4 {[%clk 0:03:01]}
4. Nxd4 {[%clk 0:03:01.3]} 4... Nf6 {[%clk 0:03:01.3]} 5. Nc3 {[%clk 0:03:02]}
5... a6 {[%clk 0:03:01.8]} 6. Rg1 {[%clk 0:03:02.6]} 6... e5 {[%clk 0:03:00.8]}
7. Nb3 {[%clk 0:03:02.6]} 7... h5 {[%clk 0:03:01.1]} 8. h3 {[%clk 0:03:02.8]}
8... h4 {[%clk 0:02:54.9]} 9. Be3 {[%clk 0:03:03.1]} 9... Be6 {[%clk 0:02:53.7]}
10. Qd2 {[%clk 0:03:03.1]} 10... Nbd7 {[%clk 0:02:53.8]} 11. O-O-O {[%clk
0:03:03.4]} 11... Be7 {[%clk 0:02:53.9]} 12. Kb1 {[%clk 0:03:02.4]} 12... b5
{[%clk 0:02:54]} 13. f3 {[%clk 0:03:00.1]} 13... Nb6 {[%clk 0:02:47.9]} 14. Na5
{[%clk 0:02:31.4]} 14... Qc7 {[%clk 0:02:41.8]} 15. Bxb5+ {[%clk 0:01:46.2]}
15... axb5 {[%clk 0:02:40.4]} 16. Nxb5 {[%clk 0:01:47.1]} 16... Bxa2+ {[%clk
0:02:31.6]} 17. Kc1 {[%clk 0:01:16.3]} 17... Qd7 {[%clk 0:02:31.5]} 18. Qb4
{[%clk 0:01:09.5]} 18... O-O {[%clk 0:02:20.3]} 19. Bxb6 {[%clk 0:01:08.1]}
19... d5 {[%clk 0:02:12.3]} 20. Qa4 {[%clk 0:00:50]} 20... Rfb8 {[%clk
0:01:47.8]} 21. Nc3 {[%clk 0:00:08.8]} 21... Rxb6 {[%clk 0:01:47.2]} 22. Qxd7
{[%clk 0:00:04.5]} 22... Nxd7 {[%clk 0:01:48.1]} 23. Nxa2 {[%clk 0:00:03.6]}
23... Rxa5 {[%clk 0:01:47.7]} 24. Nc3 {[%clk 0:00:02.9]} 24... Bg5+ {[%clk
0:01:42.5]} 25. Rd2 {[%clk 0:00:01.1]} 25... Ra1+ {[%clk 0:01:41.8]} 26. Nb1
{[%clk 0:00:01.1]} 26... dxe4 {[%clk 0:01:39.7]} 27. fxe4 {[%clk 0:00:00.4]}
27... Nc5 {[%clk 0:01:39.6]} 0-1

[Event "Early-Titled-Tuesday-Blitz-May-07-2024"]
[Site "Chess.com"]
[Date "2024.05.07"]
[Round "5"]
[White "ErikRonka"]
[Black "ViralduS"]
[Result "1-0"]
[WhiteElo "2514"]
[BlackElo "2638"]
[TimeControl "180+1"]
[EndTime "8:57:33 PDT"]
[Termination "ErikRonka won by resignation"]

1. e4 {[%clk 0:03:00.9]} 1... c5 {[%clk 0:02:57.4]} 2. Nf3 {[%clk 0:03:00.8]}
2... d6 {[%clk 0:02:56.3]} 3. d4 {[%clk 0:03:01]} 3... cxd4 {[%clk 0:02:54.5]}
4. Nxd4 {[%clk 0:03:01.9]} 4... Nf6 {[%clk 0:02:50.1]} 5. Nc3 {[%clk 0:03:02.4]}
5... Nc6 {[%clk 0:02:47.9]} 6. Bg5 {[%clk 0:03:00.9]} 6... e6 {[%clk 0:02:40]}
7. Qd2 {[%clk 0:03:00.8]} 7... Be7 {[%clk 0:02:31.1]} 8. O-O-O {[%clk
0:03:00.4]} 8... a6 {[%clk 0:02:22.1]} 9. f4 {[%clk 0:03:00]} 9... Bd7 {[%clk
0:02:12]} 10. Nf3 {[%clk 0:02:59.1]} 10... b5 {[%clk 0:02:00.9]} 11. Bxf6 {[%clk
0:02:56.1]} 11... gxf6 {[%clk 0:01:58.9]} 12. f5 {[%clk 0:02:56]} 12... Qb6
{[%clk 0:01:07.3]} 13. g3 {[%clk 0:02:55.7]} 13... O-O-O {[%clk 0:01:03.9]} 14.
fxe6 {[%clk 0:02:53.9]} 14... fxe6 {[%clk 0:01:02.1]} 15. Bh3 {[%clk 0:02:54.4]}
15... Kb7 {[%clk 0:00:55.4]} 16. Ne2 {[%clk 0:02:51.5]} 16... Rhe8 {[%clk
0:00:43.6]} 17. Nf4 {[%clk 0:02:51]} 17... Bf8 {[%clk 0:00:42.7]} 18. Nh5 {[%clk
0:02:39.6]} 18... Ne5 {[%clk 0:00:27.4]} 19. Nd4 {[%clk 0:02:04.5]} 19... Nc4
{[%clk 0:00:22.7]} 20. Qe2 {[%clk 0:01:53.5]} 20... Bh6+ {[%clk 0:00:20.3]} 21.
Kb1 {[%clk 0:01:54.1]} 21... f5 {[%clk 0:00:05.7]} 22. Nf6 {[%clk 0:01:48.2]}
22... Re7 {[%clk 0:00:05.9]} 23. exf5 {[%clk 0:01:44.2]} 23... Ne3 {[%clk
0:00:06.3]} 24. fxe6 {[%clk 0:01:33.1]} 24... Nxd1 {[%clk 0:00:04.7]} 25. Rxd1
{[%clk 0:01:34]} 25... Bg7 {[%clk 0:00:01.8]} 26. Nd5 {[%clk 0:01:27.7]} 26...
Rxe6 {[%clk 0:00:01.5]} 1-0

[Event "Early-Titled-Tuesday-Blitz-May-07-2024"]
[Site "Chess.com"]
[Date "2024.05.07"]
[Round "5"]
[White "Triumphmate"]
[Black "EgorYakovlev"]
[Result "1-0"]
[WhiteElo "2445"]
[BlackElo "2563"]
[TimeControl "180+1"]
[EndTime "8:57:34 PDT"]
[Termination "Triumphmate won by resignation"]

1. e4 {[%clk 0:02:58.2]} 1... c5 {[%clk 0:02:57]} 2. Nf3 {[%clk 0:02:58.2]} 2...
d6 {[%clk 0:02:57]} 3. d4 {[%clk 0:02:57.6]} 3... cxd4 {[%clk 0:02:57.9]} 4.
Nxd4 {[%clk 0:02:58.5]} 4... Nf6 {[%clk 0:02:57.8]} 5. Nc3 {[%clk 0:02:55.6]}
5... a6 {[%clk 0:02:57.2]} 6. f4 {[%clk 0:02:50.9]} 6... e6 {[%clk 0:02:51.9]}
7. Nf3 {[%clk 0:02:32.9]} 7... Qc7 {[%clk 0:02:49.5]} 8. Bd3 {[%clk 0:02:33.8]}
8... b5 {[%clk 0:02:48.9]} 9. a3 {[%clk 0:02:33.8]} 9... Bb7 {[%clk 0:02:49.2]}
10. O-O {[%clk 0:02:34.3]} 10... Nbd7 {[%clk 0:02:45.7]} 11. Kh1 {[%clk
0:02:29.8]} 11... Nc5 {[%clk 0:02:45.3]} 12. Qe1 {[%clk 0:02:25]} 12... Nxd3
{[%clk 0:02:44.7]} 13. cxd3 {[%clk 0:02:25.9]} 13... Be7 {[%clk 0:02:41.4]} 14.
Bd2 {[%clk 0:02:23.7]} 14... O-O {[%clk 0:02:30]} 15. Qg3 {[%clk 0:02:20.8]}
15... Qb6 {[%clk 0:02:20.5]} 16. Rae1 {[%clk 0:02:16.7]} 16... a5 {[%clk
0:02:18.7]} 17. f5 {[%clk 0:01:53.2]} 17... b4 {[%clk 0:02:12]} 18. axb4 {[%clk
0:01:41]} 18... axb4 {[%clk 0:02:11.7]} 19. Ne2 {[%clk 0:01:41.4]} 19... exf5
{[%clk 0:02:05.1]} 20. Nfd4 {[%clk 0:01:17.1]} 20... fxe4 {[%clk 0:01:42.7]} 21.
Nf5 {[%clk 0:01:12.3]} 21... Ne8 {[%clk 0:01:35.8]} 22. Nxe7+ {[%clk 0:01:09.6]}
22... Kh8 {[%clk 0:01:36.5]} 23. Qh4 {[%clk 0:00:56.1]} 23... Nf6 {[%clk
0:01:21.9]} 24. Rxf6 {[%clk 0:00:41.2]} 24... exd3 {[%clk 0:01:19.4]} 25. Nf4
{[%clk 0:00:32.4]} 25... Qd4 {[%clk 0:01:16.6]} 26. Nfg6+ {[%clk 0:00:27.9]}
26... fxg6 {[%clk 0:01:13.1]} 27. Rxf8+ {[%clk 0:00:24.9]} 27... Rxf8 {[%clk
0:01:14]} 28. Qxd4 {[%clk 0:00:24.2]} 1-0

[Event "Early-Titled-Tuesday-Blitz-May-07-2024"]
[Site "Chess.com"]
[Date "2024.05.07"]
[Round "5"]
[White "xasid81"]
[Black "H3nriqueTV"]
[Result "1-0"]
[WhiteElo "2644"]
[BlackElo "2431"]
[TimeControl "180+1"]
[EndTime "8:57:35 PDT"]
[Termination "xasid81 won by resignation"]

1. g3 {[%clk 0:02:59.4]} 1... d5 {[%clk 0:02:40]} 2. Bg2 {[%clk 0:02:59.3]} 2...
c6 {[%clk 0:02:38.1]} 3. d3 {[%clk 0:02:58.6]} 3... Nf6 {[%clk 0:02:35.8]} 4.
Nd2 {[%clk 0:02:57.6]} 4... Bf5 {[%clk 0:02:35.6]} 5. e4 {[%clk 0:02:57.5]} 5...
dxe4 {[%clk 0:02:32.1]} 6. Nxe4 {[%clk 0:02:58.4]} 6... Nbd7 {[%clk 0:02:25.9]}
7. Ne2 {[%clk 0:02:57.2]} 7... e6 {[%clk 0:02:24.3]} 8. O-O {[%clk 0:02:56.7]}
8... Be7 {[%clk 0:02:21.3]} 9. N2c3 {[%clk 0:02:56.7]} 9... O-O {[%clk
0:02:21.2]} 10. Re1 {[%clk 0:02:54.2]} 10... h6 {[%clk 0:02:14.9]} 11. b3 {[%clk
0:02:53.1]} 11... Nd5 {[%clk 0:01:45.3]} 12. Bb2 {[%clk 0:02:49.9]} 12... N7f6
{[%clk 0:01:43.8]} 13. Nxf6+ {[%clk 0:02:48.8]} 13... Bxf6 {[%clk 0:01:41.8]}
14. Na4 {[%clk 0:02:42]} 14... Bxb2 {[%clk 0:01:23.4]} 15. Nxb2 {[%clk
0:02:42.9]} 15... Qf6 {[%clk 0:01:23.1]} 16. Nc4 {[%clk 0:02:37.8]} 16... Rad8
{[%clk 0:01:22.9]} 17. Qd2 {[%clk 0:02:34.5]} 17... Rfe8 {[%clk 0:01:21.3]} 18.
a4 {[%clk 0:02:29.2]} 18... h5 {[%clk 0:01:01.7]} 19. h4 {[%clk 0:02:28.2]}
19... e5 {[%clk 0:00:48.7]} 20. Qa5 {[%clk 0:02:20.1]} 20... a6 {[%clk
0:00:41.9]} 21. Rad1 {[%clk 0:02:16.1]} 21... Bg4 {[%clk 0:00:40.5]} 22. f3
{[%clk 0:02:12.4]} 22... Bxf3 {[%clk 0:00:38.1]} 23. Rf1 {[%clk 0:02:10.8]}
23... e4 {[%clk 0:00:38.6]} 24. dxe4 {[%clk 0:02:07.3]} 24... Bxd1 {[%clk
0:00:20.9]} 25. Rxf6 {[%clk 0:02:03.1]} 25... Nxf6 {[%clk 0:00:21.5]} 26. e5
{[%clk 0:01:59.8]} 26... Ng4 {[%clk 0:00:21.1]} 27. Nd6 {[%clk 0:01:55.8]} 27...
Rxe5 {[%clk 0:00:20.2]} 28. Qxd8+ {[%clk 0:01:54.5]} 28... Kh7 {[%clk
0:00:20.8]} 29. Be4+ {[%clk 0:01:47.7]} 29... f5 {[%clk 0:00:17]} 30. Bxf5+
{[%clk 0:01:45.6]} 30... g6 {[%clk 0:00:17.4]} 31. Qc7+ {[%clk 0:01:33.8]} 31...
Kg8 {[%clk 0:00:16.9]} 32. Qf7+ {[%clk 0:01:31.6]} 32... Kh8 {[%clk 0:00:16.4]}
33. Bxg4 {[%clk 0:01:29.8]} 33... Bxg4 {[%clk 0:00:14.1]} 1-0

[Event "Early-Titled-Tuesday-Blitz-May-07-2024"]
[Site "Chess.com"]
[Date "2024.05.07"]
[Round "5"]
[White "ReinisUz"]
[Black "Iskusnyh"]
[Result "1-0"]
[WhiteElo "2432"]
[BlackElo "2598"]
[TimeControl "180+1"]
[EndTime "8:57:36 PDT"]
[Termination "ReinisUz won by resignation"]

1. c4 {[%clk 0:03:00.9]} 1... c5 {[%clk 0:02:57.5]} 2. Nc3 {[%clk 0:03:01.2]}
2... g6 {[%clk 0:02:57.1]} 3. g3 {[%clk 0:03:01.5]} 3... Bg7 {[%clk 0:02:57.6]}
4. Bg2 {[%clk 0:03:02]} 4... Nc6 {[%clk 0:02:58.2]} 5. Nf3 {[%clk 0:03:02.2]}
5... d6 {[%clk 0:02:58.7]} 6. O-O {[%clk 0:03:02.4]} 6... e6 {[%clk 0:02:59.2]}
7. e3 {[%clk 0:03:02]} 7... Nge7 {[%clk 0:02:59.1]} 8. d4 {[%clk 0:03:02.1]}
8... O-O {[%clk 0:02:57.2]} 9. b3 {[%clk 0:03:01.9]} 9... e5 {[%clk 0:02:56.9]}
10. d5 {[%clk 0:02:59.5]} 10... Nb4 {[%clk 0:02:53.1]} 11. Bb2 {[%clk
0:02:55.8]} 11... e4 {[%clk 0:02:44.8]} 12. Ne1 {[%clk 0:02:50.5]} 12... f5
{[%clk 0:02:41.4]} 13. a3 {[%clk 0:02:49.8]} 13... Na6 {[%clk 0:02:40.9]} 14.
Qc2 {[%clk 0:02:47.8]} 14... g5 {[%clk 0:02:38.8]} 15. f4 {[%clk 0:02:46]} 15...
Ng6 {[%clk 0:02:32.4]} 16. Ne2 {[%clk 0:02:43.8]} 16... h6 {[%clk 0:02:19.1]}
17. Bxg7 {[%clk 0:02:39.9]} 17... Kxg7 {[%clk 0:02:20]} 18. Qb2+ {[%clk
0:02:40]} 18... Qf6 {[%clk 0:02:20]} 19. Qxf6+ {[%clk 0:02:39.6]} 19... Rxf6
{[%clk 0:02:19.9]} 20. Nc2 {[%clk 0:02:34.9]} 20... Bd7 {[%clk 0:02:17.3]} 21.
Nc3 {[%clk 0:02:34.5]} 21... Nc7 {[%clk 0:02:06.6]} 22. a4 {[%clk 0:02:18.3]}
22... Na6 {[%clk 0:02:06.1]} 23. Rf2 {[%clk 0:02:18]} 23... Kf7 {[%clk
0:01:47.7]} 24. fxg5 {[%clk 0:02:09.4]} 24... hxg5 {[%clk 0:01:47.3]} 25. Raf1
{[%clk 0:02:10]} 25... Ke7 {[%clk 0:01:05.5]} 26. Nxe4 {[%clk 0:02:07.6]} 26...
Rff8 {[%clk 0:01:04.9]} 27. Nxg5 {[%clk 0:02:07.1]} 27... Ne5 {[%clk 0:01:05.1]}
28. e4 {[%clk 0:01:55.9]} 28... Rg8 {[%clk 0:00:40.8]} 29. Ne6 {[%clk
0:01:54.4]} 29... Bxe6 {[%clk 0:00:25.8]} 30. dxe6 {[%clk 0:01:53]} 30... fxe4
{[%clk 0:00:22.4]} 31. Bxe4 {[%clk 0:01:50.3]} 31... Rg7 {[%clk 0:00:21.2]} 32.
Bxb7 {[%clk 0:01:46.7]} 32... Nc7 {[%clk 0:00:19.1]} 33. Bxa8 {[%clk 0:01:46.3]}
33... Nxa8 {[%clk 0:00:20]} 34. Ne3 {[%clk 0:01:46.7]} 34... Nb6 {[%clk
0:00:19.3]} 35. Nf5+ {[%clk 0:01:46.3]} 1-0

[Event "Early-Titled-Tuesday-Blitz-May-07-2024"]
[Site "Chess.com"]
[Date "2024.05.07"]
[Round "5"]
[White "klimkoj"]
[Black "Statham_01"]
[Result "1-0"]
[WhiteElo "2923"]
[BlackElo "2673"]
[TimeControl "180+1"]
[EndTime "8:57:41 PDT"]
[Termination "klimkoj won by checkmate"]

1. d4 {[%clk 0:03:00.9]} 1... d5 {[%clk 0:02:59.6]} 2. c4 {[%clk 0:02:58.2]}
2... Nc6 {[%clk 0:02:59.9]} 3. Nf3 {[%clk 0:02:57.5]} 3... Bg4 {[%clk
0:02:59.3]} 4. Nc3 {[%clk 0:02:57.6]} 4... e6 {[%clk 0:02:57.4]} 5. Bf4 {[%clk
0:02:55.4]} 5... Nf6 {[%clk 0:02:56.2]} 6. e3 {[%clk 0:02:53.9]} 6... Bd6 {[%clk
0:02:54.3]} 7. Bxd6 {[%clk 0:02:52.7]} 7... cxd6 {[%clk 0:02:54.2]} 8. cxd5
{[%clk 0:02:52.5]} 8... exd5 {[%clk 0:02:53.9]} 9. Bd3 {[%clk 0:02:51.4]} 9...
O-O {[%clk 0:02:53.7]} 10. h3 {[%clk 0:02:51.8]} 10... Bh5 {[%clk 0:02:53.5]}
11. O-O {[%clk 0:02:51.3]} 11... Re8 {[%clk 0:02:53.3]} 12. Rc1 {[%clk
0:02:50.1]} 12... Rc8 {[%clk 0:02:52.1]} 13. a3 {[%clk 0:02:41.1]} 13... Qa5
{[%clk 0:02:31.2]} 14. Qa4 {[%clk 0:02:39]} 14... Qd8 {[%clk 0:02:16.7]} 15. Nd2
{[%clk 0:02:37.3]} 15... a6 {[%clk 0:02:13.8]} 16. Ne2 {[%clk 0:02:25.8]} 16...
Ne4 {[%clk 0:02:08.9]} 17. Qd1 {[%clk 0:01:50.3]} 17... Qh4 {[%clk 0:02:00.3]}
18. Qe1 {[%clk 0:01:44.7]} 18... Nxd2 {[%clk 0:01:42.5]} 19. Qxd2 {[%clk
0:01:44.6]} 19... Bxe2 {[%clk 0:01:38.2]} 20. Bxe2 {[%clk 0:01:45.5]} 20... Ne7
{[%clk 0:01:30.7]} 21. Qb4 {[%clk 0:01:41.5]} 21... Rxc1 {[%clk 0:01:11.7]} 22.
Rxc1 {[%clk 0:01:42.4]} 22... g5 {[%clk 0:00:29.8]} 23. Qxb7 {[%clk 0:01:31.9]}
23... Nf5 {[%clk 0:00:20.3]} 24. Qd7 {[%clk 0:01:28.4]} 24... Re6 {[%clk
0:00:19.3]} 25. Bg4 {[%clk 0:01:27.1]} 25... Nxe3 {[%clk 0:00:04.1]} 26. Bxe6
{[%clk 0:01:24.2]} 26... fxe6 {[%clk 0:00:01.9]} 27. Rc8# {[%clk 0:01:23.2]} 1-0

[Event "Early-Titled-Tuesday-Blitz-May-07-2024"]
[Site "Chess.com"]
[Date "2024.05.07"]
[Round "5"]
[White "GothamChess"]
[Black "Msb2"]
[Result "0-1"]
[WhiteElo "2721"]
[BlackElo "3032"]
[TimeControl "180+1"]
[EndTime "8:57:43 PDT"]
[Termination "Msb2 won by resignation"]

1. e4 {[%clk 0:03:00.9]} 1... e6 {[%clk 0:03:00.3]} 2. b3 {[%clk 0:02:57.4]}
2... d5 {[%clk 0:02:59.2]} 3. Bb2 {[%clk 0:02:57.9]} 3... a6 {[%clk 0:02:59.9]}
4. Qe2 {[%clk 0:02:40.6]} 4... d4 {[%clk 0:02:58.6]} 5. f4 {[%clk 0:02:36.8]}
5... c5 {[%clk 0:02:58.2]} 6. Nf3 {[%clk 0:02:36.9]} 6... Nc6 {[%clk 0:02:58.5]}
7. g3 {[%clk 0:02:19.3]} 7... Bd6 {[%clk 0:02:40.7]} 8. Bg2 {[%clk 0:02:17.5]}
8... Nge7 {[%clk 0:02:41.2]} 9. c3 {[%clk 0:02:16.4]} 9... Bc7 {[%clk
0:02:32.8]} 10. O-O {[%clk 0:02:12.2]} 10... O-O {[%clk 0:02:32.1]} 11. Kh1
{[%clk 0:02:12.6]} 11... b5 {[%clk 0:02:28.2]} 12. cxd4 {[%clk 0:02:09]} 12...
cxd4 {[%clk 0:02:25.5]} 13. a3 {[%clk 0:01:59.7]} 13... Bb7 {[%clk 0:02:21.6]}
14. d3 {[%clk 0:01:55]} 14... Rc8 {[%clk 0:02:18.9]} 15. Nbd2 {[%clk 0:01:54.3]}
15... Qd7 {[%clk 0:02:19.6]} 16. b4 {[%clk 0:01:49.2]} 16... Bb6 {[%clk
0:01:55.7]} 17. Nb3 {[%clk 0:01:47.3]} 17... Rc7 {[%clk 0:01:52.6]} 18. Rfc1
{[%clk 0:01:41.6]} 18... h6 {[%clk 0:01:42.4]} 19. Nc5 {[%clk 0:01:39.5]} 19...
Bxc5 {[%clk 0:01:42.9]} 20. Rxc5 {[%clk 0:01:40.1]} 20... f5 {[%clk 0:01:41.4]}
21. Rac1 {[%clk 0:01:34.8]} 21... Rfc8 {[%clk 0:01:36.2]} 22. Nd2 {[%clk
0:01:19.9]} 22... a5 {[%clk 0:01:20.7]} 23. bxa5 {[%clk 0:00:56.8]} 23... Nxa5
{[%clk 0:01:21.6]} 24. Rxc7 {[%clk 0:00:44.9]} 24... Rxc7 {[%clk 0:01:22.5]} 25.
Rxc7 {[%clk 0:00:45.1]} 25... Qxc7 {[%clk 0:01:23.4]} 26. Bxd4 {[%clk
0:00:44.9]} 26... Kh7 {[%clk 0:01:18.8]} 27. Qd1 {[%clk 0:00:34.7]} 27... Qd7
{[%clk 0:01:08.8]} 28. Qa1 {[%clk 0:00:34.2]} 28... Nec6 {[%clk 0:01:08.2]} 29.
Nf3 {[%clk 0:00:30.2]} 29... Nb3 {[%clk 0:01:06.4]} 0-1

[Event "Early-Titled-Tuesday-Blitz-May-07-2024"]
[Site "Chess.com"]
[Date "2024.05.07"]
[Round "5"]
[White "NMChessToImpress"]
[Black "Ramla2020"]
[Result "0-1"]
[WhiteElo "2261"]
[BlackElo "2439"]
[TimeControl "180+1"]
[EndTime "8:57:48 PDT"]
[Termination "Ramla2020 won by checkmate"]

1. e4 {[%clk 0:02:58]} 1... e5 {[%clk 0:02:59.8]} 2. Nf3 {[%clk 0:02:58.3]} 2...
d6 {[%clk 0:02:59.9]} 3. d4 {[%clk 0:02:57.7]} 3... Nd7 {[%clk 0:03:00.8]} 4.
Nc3 {[%clk 0:02:53.2]} 4... c6 {[%clk 0:03:01]} 5. a4 {[%clk 0:02:52.1]} 5...
Be7 {[%clk 0:03:01.2]} 6. g3 {[%clk 0:02:42.9]} 6... Ngf6 {[%clk 0:03:00.6]} 7.
Bg2 {[%clk 0:02:43]} 7... O-O {[%clk 0:03:01]} 8. O-O {[%clk 0:02:42.9]} 8...
Re8 {[%clk 0:03:01.3]} 9. h3 {[%clk 0:02:35.5]} 9... Bf8 {[%clk 0:03:00.5]} 10.
Re1 {[%clk 0:02:30]} 10... Qc7 {[%clk 0:02:59.4]} 11. a5 {[%clk 0:02:20]} 11...
b5 {[%clk 0:02:57.1]} 12. axb6 {[%clk 0:02:17]} 12... Nxb6 {[%clk 0:02:57]} 13.
b3 {[%clk 0:02:02.8]} 13... Bb7 {[%clk 0:02:53.4]} 14. Ba3 {[%clk 0:01:58.1]}
14... a6 {[%clk 0:02:39.3]} 15. dxe5 {[%clk 0:01:37.2]} 15... dxe5 {[%clk
0:02:40.2]} 16. Bxf8 {[%clk 0:01:37.6]} 16... Rxf8 {[%clk 0:02:39.8]} 17. Na4
{[%clk 0:01:25.8]} 17... c5 {[%clk 0:02:16.6]} 18. Nd2 {[%clk 0:01:19.4]} 18...
Rfd8 {[%clk 0:02:08.9]} 19. Nxb6 {[%clk 0:01:13.6]} 19... Qxb6 {[%clk 0:02:08]}
20. Qc1 {[%clk 0:01:04.5]} 20... Rd4 {[%clk 0:02:00.6]} 21. Nc4 {[%clk
0:00:47.1]} 21... Qc7 {[%clk 0:02:00.4]} 22. c3 {[%clk 0:00:42.7]} 22... Rd3
{[%clk 0:01:56.6]} 23. Bf1 {[%clk 0:00:14.6]} 23... Rd7 {[%clk 0:01:55.6]} 24.
f3 {[%clk 0:00:15]} 24... Rad8 {[%clk 0:01:54]} 25. Qc2 {[%clk 0:00:12.7]} 25...
Bc6 {[%clk 0:01:49.6]} 26. Rxa6 {[%clk 0:00:11.4]} 26... Bb5 {[%clk 0:01:49.5]}
27. Raa1 {[%clk 0:00:10.1]} 27... Bxc4 {[%clk 0:01:47.9]} 28. Bxc4 {[%clk
0:00:11]} 28... Rd2 {[%clk 0:01:48.3]} 29. Qc1 {[%clk 0:00:09.9]} 29... Nh5
{[%clk 0:01:46.2]} 30. Ra6 {[%clk 0:00:06.5]} 30... Nxg3 {[%clk 0:01:42.6]} 31.
Qa1 {[%clk 0:00:05.9]} 31... Qe7 {[%clk 0:01:37.5]} 32. Ra7 {[%clk 0:00:04.2]}
32... Qg5 {[%clk 0:01:37.1]} 33. Bxf7+ {[%clk 0:00:04.3]} 33... Kh8 {[%clk
0:01:36.8]} 34. Ra8 {[%clk 0:00:01.8]} 34... Nf1+ {[%clk 0:01:34.5]} 35. Kxf1
{[%clk 0:00:01.5]} 35... Qg2# {[%clk 0:01:34.2]} 0-1